fUST/lending_fUST_20240826
["ID","MTS","AMOUNT","RATE_DAILY","PERIOD"]
[336055317,1724682646572,-500.0,0.00011518,2]
[336055319,1724682646584,-500.0,0.00011518,2]
[336055321,1724682646593,-500.0,0.00011518,2]
[336055323,1724682646602,-500.0,0.00011518,2]
[336055325,1724682646611,-500.0,0.00011518,2]
[336055327,1724682646620,-864.96,0.00011518,2]
[336055329,1724682646630,-500.0,0.00011518,2]
[336055331,1724682646639,-500.0,0.00011518,2]
[336055333,1724682646649,-500.0,0.00011518,2]
[336055335,1724682646658,-500.0,0.00011518,2]
[336055337,1724682646667,-500.0,0.00011518,2]
[336055339,1724682646676,-500.0,0.00011518,2]
[336055341,1724682646686,-500.0,0.00011518,2]
[336055343,1724682646695,-500.0,0.00011518,2]
[336055345,1724682646706,-500.0,0.00011518,2]
[336055347,1724682646715,-500.0,0.00011518,2]
[336055349,1724682646724,-758.51,0.00011518,2]
[336055351,1724682646734,-847.01,0.00011518,2]
[336055353,1724682646745,-770.12,0.00011518,2]
[336055355,1724682646755,-500.0,0.00011518,2]
[336055357,1724682646764,-500.0,0.00011518,2]
[336055359,1724682646775,-736.76,0.00011518,2]
[336055361,1724682646787,-500.0,0.00011518,2]
[336055364,1724682646796,-500.0,0.00011518,2]
[336055366,1724682646806,-500.0,0.00011518,2]
[336055368,1724682646815,-500.0,0.00011518,2]
[336055370,1724682646825,-500.0,0.00011518,2]
[336055372,1724682646838,-925.17975472,0.00011554,2]
[336055374,1724682646848,-500.0,0.00011573,2]
[336055376,1724682646859,-500.0,0.00011573,2]
[336055378,1724682646868,-500.0,0.00011573,2]
[336055380,1724682646878,-207.7743686,0.000116,2]
[336055382,1724682646887,-500.0,0.00011616,2]
[336055384,1724682646897,-500.0,0.00011616,2]
[336055386,1724682646907,-500.0,0.00011616,2]
[336055388,1724682646916,-518.31460666,0.00011616,2]
[336055390,1724682646925,-548.65,0.00011616,2]
[336055392,1724682646936,-548.65,0.00011616,2]
[336055394,1724682646947,-500.0,0.00011617,2]
[336055396,1724682646956,-500.0,0.00011617,2]
[336055398,1724682646967,-308.541576,0.00011617,2]
[336055400,1724682646977,-548.65,0.00011617,2]
[336055402,1724682646987,-548.65,0.00011617,2]
[336055404,1724682646997,-548.65,0.00011617,2]
[336055406,1724682647006,-548.65,0.00011618,2]
[336055408,1724682647015,-548.65,0.00011618,2]
[336055410,1724682647025,-925.17975472,0.00011622,2]
[336055412,1724682647038,-1823.92,0.0001169,2]
[336055414,1724682647048,-21950.1531866,0.00011691,2]
[336055416,1724682647058,-925.17975472,0.00011691,2]
[336055419,1724682647068,-500.0,0.00011773,2]
[336055420,1724682647081,-500.0,0.00011788,2]
[336055423,1724682647090,-556.87,0.00011788,2]
[336055424,1724682647099,-500.0,0.00011788,2]
[336055426,1724682647108,-581.73,0.00011788,2]
[336055428,1724682647118,-1751.58,0.00011788,2]
[336055430,1724682647127,-500.0,0.00011788,2]
[336055432,1724682647138,-590.08,0.00011788,2]
[336055434,1724682647148,-685.55,0.00011788,2]
[336055437,1724682647159,-1856.44,0.00011788,2]
[336055439,1724682647170,-500.0,0.00011788,2]
[336055441,1724682647179,-580.93,0.00011788,2]
[336055443,1724682647189,-500.0,0.00011788,2]
[336055445,1724682647199,-500.0,0.00011788,2]
[336055447,1724682647208,-598.23,0.00011788,2]
[336055449,1724682647218,-500.0,0.00011788,2]
[336055451,1724682647228,-382.83,0.00011788,2]
[336055453,1724682647238,-1823.92,0.00011788,2]
[336055455,1724682647248,-1823.92,0.00011788,2]
[336055457,1724682647257,-500.0,0.00011788,2]
[336055459,1724682647267,-626.3,0.00011789,2]
[336055461,1724682647277,-493.13003002,0.00011789,2]
[336055463,1724682647287,-500.0,0.00011789,2]
[336055465,1724682647297,-500.0,0.00011789,2]
[336055467,1724682647307,-500.0,0.00011789,2]
[336055469,1724682647317,-500.0,0.00011789,2]
[336055471,1724682647330,-1014.55,0.00011789,2]
[336055473,1724682647339,-444.73254996,0.00011789,2]
[336055475,1724682647349,-583.3,0.00011789,2]
[336055477,1724682647357,-500.73897353,0.00011789,2]
[336055479,1724682647366,-500.0,0.00011789,2]
[336055481,1724682647376,-500.0,0.00011789,2]
[336055483,1724682647386,-500.0,0.00011789,2]
[336055485,1724682647395,-974.62,0.00011789,2]
[336055487,1724682647406,-500.0,0.00011789,2]
[336055489,1724682647416,-1083.57,0.00011789,2]
[336055491,1724682647425,-500.0,0.00011789,2]
[336055494,1724682647435,-500.0,0.00011789,2]
[336055496,1724682647445,-643.2,0.00011789,2]
[336055498,1724682647454,-669.35,0.00011789,2]
[336055500,1724682647464,-511.15,0.00011789,2]
[336055502,1724682647474,-562.83,0.00011789,2]
[336055504,1724682647483,-500.0,0.00011789,2]
[336055506,1724682647492,-930.59,0.00011789,2]
[336055508,1724682647502,-500.0,0.00011789,2]
[336055510,1724682647511,-703.76,0.00011789,2]
[336055512,1724682647521,-707.34,0.00011789,2]
[336055514,1724682647531,-727.69,0.00011789,2]
[336055516,1724682647540,-832.96,0.00011789,2]
[336055518,1724682647550,-1216.25,0.00011789,2]
[336055520,1724682647560,-811.37,0.00011789,2]
[336055522,1724682647569,-514.21811915,0.00011789,2]
[336055524,1724682647579,-573.93,0.00011789,2]
[336055526,1724682647588,-509.83,0.00011789,2]
[336055528,1724682647597,-500.0,0.00011789,2]
[336055530,1724682647606,-500.0,0.00011789,2]
[336055532,1724682647616,-937.56,0.00011789,2]
[336055534,1724682647625,-1115.28,0.00011789,2]
[336055536,1724682647634,-500.0,0.00011789,2]
[336055538,1724682647644,-809.25,0.00011789,2]
[336055540,1724682647653,-626.69,0.00011789,2]
[336055542,1724682647663,-685.36,0.00011789,2]
[336055544,1724682647672,-998.36,0.00011789,2]
[336055546,1724682647682,-863.94,0.00011789,2]
[336055548,1724682647691,-500.0,0.00011789,2]
[336055550,1724682647701,-1990.97,0.00011789,2]
[336055552,1724682647710,-500.0,0.00011789,2]
[336055554,1724682647719,-831.07,0.00011789,2]
[336055556,1724682647728,-500.0,0.00011789,2]
[336055558,1724682647737,-714.41,0.00011789,2]
[336055560,1724682647747,-1221.88,0.00011789,2]
[336055561,1724682647755,-500.89,0.00011789,2]
[336055563,1724682647765,-1192.19,0.00011789,2]
[336055565,1724682647776,-500.0,0.00011789,2]
[336055567,1724682647786,-500.0,0.00011789,2]
[336055569,1724682647796,-692.3,0.00011789,2]
[336055571,1724682647806,-755.04,0.00011789,2]
[336055573,1724682647816,-500.0,0.00011789,2]
[336055575,1724682647825,-589.61,0.00011789,2]
[336055577,1724682647836,-500.0,0.00011789,2]
[336055579,1724682647845,-567.02,0.00011789,2]
[336055581,1724682647856,-956.63,0.00011789,2]
[336055583,1724682647865,-648.87,0.00011789,2]
[336055585,1724682647874,-21247.59,0.00011789,2]
[336055587,1724682647883,-632.25,0.00011789,2]
[336055589,1724682647892,-519.67,0.00011789,2]
[336055591,1724682647902,-500.0,0.00011789,2]
[336055593,1724682647911,-701.52,0.00011789,2]
[336055595,1724682647919,-1046.8,0.00011789,2]
[336055597,1724682647929,-500.0,0.00011789,2]
[336055599,1724682647938,-500.0,0.00011789,2]
[336055601,1724682647948,-500.0,0.00011789,2]
[336055603,1724682647957,-502.52,0.00011789,2]
[336055605,1724682647967,-1187.24,0.00011789,2]
[336055607,1724682647976,-500.0,0.00011789,2]
[336055609,1724682647985,-705.46,0.00011789,2]
[336055611,1724682647994,-502.63,0.00011789,2]
[336055613,1724682648004,-500.0,0.00011789,2]
[336055615,1724682648014,-764.24,0.00011789,2]
[336055617,1724682648023,-500.0,0.00011789,2]
[336055619,1724682648033,-500.0,0.00011789,2]
[336055621,1724682648043,-1446.51,0.00011789,2]
[336055623,1724682648052,-656.56,0.00011789,2]
[336055625,1724682648062,-1136.38,0.00011789,2]
[336055627,1724682648072,-504.8,0.00011789,2]
[336055629,1724682648086,-571.52,0.00011789,2]
[336055631,1724682648096,-500.0,0.00011789,2]
[336055633,1724682648105,-500.0,0.00011789,2]
[336055635,1724682648115,-652.99,0.00011789,2]
[336055636,1724682648125,-500.0,0.00011789,2]
[336055637,1724682648136,-500.0,0.00011789,2]
[336055638,1724682648147,-692.96,0.00011789,2]
[336055639,1724682648157,-622.2,0.00011789,2]
[336055641,1724682648168,-500.0,0.00011789,2]
[336055643,1724682648179,-500.0,0.00011789,2]
[336055645,1724682648189,-3036.48,0.00011789,2]
[336055647,1724682648200,-577.87,0.00011789,2]
[336055649,1724682648211,-500.0,0.00011789,2]
[336055651,1724682648221,-500.0,0.00011789,2]
[336055652,1724682648231,-500.0,0.00011789,2]
[336055654,1724682648241,-500.0,0.00011789,2]
[336055656,1724682648251,-1174.66,0.00011789,2]
[336055658,1724682648261,-500.0,0.00011789,2]
[336055660,1724682648271,-967.79,0.00011789,2]
[336055661,1724682648280,-500.0,0.00011789,2]
[336055663,1724682648289,-500.0,0.00011789,2]
[336055665,1724682648299,-500.0,0.00011789,2]
[336055667,1724682648309,-700.99,0.00011789,2]
[336055669,1724682648319,-655.78,0.00011789,2]
[336055671,1724682648333,-707.65,0.00011789,2]
[336055672,1724682648342,-983.65,0.00011789,2]
[336055674,1724682648352,-513.66,0.00011789,2]
[336055676,1724682648361,-520.5,0.00011789,2]
[336055678,1724682648371,-1823.92,0.00011789,2]
[336055680,1724682648380,-1823.92,0.00011789,2]
[336055682,1724682648389,-731.14,0.00011789,2]
[336055684,1724682648399,-255.82773292,0.0001179,2]
[336055686,1724682648408,-500.0,0.0001179,2]
[336055687,1724682648417,-501.24597076,0.0001179,2]
[336055689,1724682648427,-500.0,0.0001179,2]
[336055691,1724682648437,-565.71,0.0001179,2]
[336055693,1724682648447,-500.0,0.0001179,2]
[336055695,1724682648456,-500.0,0.0001179,2]
[336055696,1724682648466,-500.0,0.0001179,2]
[336055698,1724682648476,-500.0,0.0001179,2]
[336055700,1724682648486,-489.15234295,0.0001179,2]
[336055702,1724682648495,-500.0,0.0001179,2]
[336055704,1724682648505,-500.0,0.0001179,2]
[336055706,1724682648516,-501.28143481,0.0001179,2]
[336055708,1724682648526,-500.0,0.0001179,2]
[336055710,1724682648536,-500.0,0.0001179,2]
[336055712,1724682648546,-500.0,0.0001179,2]
[336055713,1724682648555,-500.0,0.0001179,2]
[336055715,1724682648564,-500.0,0.0001179,2]
[336055717,1724682648574,-500.0,0.0001179,2]
[336055719,1724682648591,-500.0,0.0001179,2]
[336055721,1724682648605,-500.0,0.0001179,2]
[336055723,1724682648615,-229.40792576,0.0001179,2]
[336055725,1724682648625,-500.0,0.0001179,2]
[336055726,1724682648635,-500.0,0.0001179,2]
[336055728,1724682648645,-500.0,0.0001179,2]
[336055730,1724682648655,-500.0,0.0001179,2]
[336055732,1724682648665,-500.0,0.0001179,2]
[336055734,1724682648674,-500.0,0.0001179,2]
[336055736,1724682648684,-500.0,0.0001179,2]
[336055738,1724682648694,-500.0,0.0001179,2]
[336055740,1724682648703,-500.0,0.0001179,2]
[336055742,1724682648713,-500.0,0.0001179,2]
[336055744,1724682648723,-500.0,0.0001179,2]
[336055746,1724682648733,-500.0,0.0001179,2]
[336055748,1724682648742,-500.0,0.0001179,2]
[336055749,1724682648752,-500.0,0.0001179,2]
[336055751,1724682648762,-649.16,0.0001179,2]
[336055753,1724682648774,-500.0,0.0001179,2]
[336055754,1724682648787,-500.0,0.0001179,2]
[336055756,1724682648797,-649.88,0.0001179,2]
[336055758,1724682648807,-500.0,0.0001179,2]
[336055760,1724682648817,-500.0,0.0001179,2]
[336055762,1724682648827,-500.0,0.0001179,2]
[336055765,1724682648842,-500.0,0.0001179,2]
[336055767,1724682648851,-656.36,0.0001179,2]
[336055768,1724682648863,-500.0,0.0001179,2]
[336055770,1724682648873,-924.1,0.0001179,2]
[336055772,1724682648883,-500.0,0.0001179,2]
[336055774,1724682648893,-358.58189356,0.0001179,2]
[336055776,1724682648903,-500.0,0.0001179,2]
[336055778,1724682648913,-443.21453025,0.0001179,2]
[336055780,1724682648923,-500.0,0.0001179,2]
[336055782,1724682648933,-500.0,0.0001179,2]
[336055784,1724682648942,-500.0,0.0001179,2]
[336055786,1724682648952,-500.0,0.0001179,2]
[336055787,1724682648963,-500.0,0.0001179,2]
[336055789,1724682648973,-500.0,0.0001179,2]
[336055791,1724682648983,-502.64694305,0.0001179,2]
[336055793,1724682648993,-500.0,0.0001179,2]
[336055795,1724682649003,-500.0,0.0001179,2]
[336055797,1724682649012,-500.0,0.0001179,2]
[336055799,1724682649022,-500.0,0.0001179,2]
[336055801,1724682649032,-500.0,0.0001179,2]
[336055803,1724682649042,-500.0,0.0001179,2]
[336055805,1724682649052,-500.0,0.0001179,2]
[336055807,1724682649062,-500.0,0.0001179,2]
[336055810,1724682649072,-500.0,0.0001179,2]
[336055812,1724682649084,-500.0,0.0001179,2]
[336055814,1724682649094,-500.0,0.0001179,2]
[336055816,1724682649104,-998.79,0.0001179,2]
[336055818,1724682649114,-519.26,0.0001179,2]
[336055820,1724682649125,-500.0,0.0001179,2]
[336055822,1724682649134,-500.0,0.0001179,2]
[336055824,1724682649144,-500.0,0.0001179,2]
[336055826,1724682649155,-500.0,0.0001179,2]
[336055827,1724682649165,-500.0,0.0001179,2]
[336055829,1724682649175,-500.0,0.0001179,2]
[336055831,1724682649185,-594.58425863,0.0001179,2]
[336055833,1724682649194,-500.0,0.0001179,2]
[336055835,1724682649204,-500.0,0.0001179,2]
[336055836,1724682649214,-500.0,0.0001179,2]
[336055838,1724682649224,-500.0,0.0001179,2]
[336055839,1724682649233,-1133.74,0.0001179,2]
[336055840,1724682649243,-500.0,0.0001179,2]
[336055841,1724682649253,-500.0,0.0001179,2]
[336055842,1724682649262,-500.0,0.0001179,2]
[336055843,1724682649272,-500.0,0.0001179,2]
[336055844,1724682649282,-500.0,0.0001179,2]
[336055845,1724682649291,-1146.62,0.0001179,2]
[336055846,1724682649301,-500.0,0.0001179,2]
[336055847,1724682649312,-500.0,0.0001179,2]
[336055848,1724682649322,-500.0,0.0001179,2]
[336055849,1724682649333,-500.0,0.0001179,2]
[336055850,1724682649343,-500.0,0.0001179,2]
[336055851,1724682649353,-500.0,0.0001179,2]
[336055852,1724682649362,-500.0,0.0001179,2]
[336055853,1724682649372,-500.0,0.0001179,2]
[336055854,1724682649382,-500.0,0.0001179,2]
[336055855,1724682649391,-500.0,0.0001179,2]
[336055856,1724682649402,-512.56,0.0001179,2]
[336055858,1724682649413,-500.0,0.0001179,2]
[336055860,1724682649426,-998.55,0.0001179,2]
[336055862,1724682649437,-519.63,0.0001179,2]
[336055864,1724682649447,-500.0,0.0001179,2]
[336055865,1724682649457,-500.0,0.0001179,2]
[336055867,1724682649467,-673.71,0.0001179,2]
[336055869,1724682649477,-500.0,0.0001179,2]
[336055872,1724682649486,-500.0,0.0001179,2]
[336055874,1724682649496,-500.0,0.0001179,2]
[336055875,1724682649506,-525.28861664,0.0001179,2]
[336055876,1724682649516,-500.0,0.0001179,2]
[336055877,1724682649525,-645.25,0.0001179,2]
[336055878,1724682649535,-500.0,0.0001179,2]
[336055879,1724682649545,-698.65,0.0001179,2]
[336055880,1724682649555,-500.0,0.0001179,2]
[336055881,1724682649565,-500.0,0.0001179,2]
[336055882,1724682649575,-554.7,0.0001179,2]
[336055883,1724682649586,-500.0,0.0001179,2]
[336055884,1724682649596,-885.02,0.0001179,2]
[336055885,1724682649606,-500.0,0.0001179,2]
[336055886,1724682649615,-587.24,0.0001179,2]
[336055887,1724682649625,-500.0,0.0001179,2]
[336055888,1724682649635,-892.42,0.0001179,2]
[336055889,1724682649644,-1206.11,0.0001179,2]
[336055890,1724682649654,-536.52,0.0001179,2]
[336055891,1724682649663,-500.0,0.0001179,2]
[336055892,1724682649672,-432.02893867,0.0001179,2]
[336055893,1724682649683,-500.0,0.0001179,2]
[336055894,1724682649693,-500.0,0.0001179,2]
[336055895,1724682649703,-500.0,0.0001179,2]
[336055896,1724682649713,-500.0,0.0001179,2]
[336055897,1724682649722,-542.47,0.0001179,2]
[336055898,1724682649732,-500.0,0.0001179,2]
[336055899,1724682649741,-741.15,0.0001179,2]
[336055900,1724682649751,-500.0,0.0001179,2]
[336055901,1724682649761,-500.0,0.0001179,2]
[336055902,1724682649771,-500.0,0.0001179,2]
[336055903,1724682649783,-500.0,0.0001179,2]
[336055904,1724682649793,-658.42,0.0001179,2]
[336055905,1724682649802,-612.04,0.0001179,2]
[336055906,1724682649812,-506.16981024,0.0001179,2]
[336055907,1724682649823,-724.95,0.0001179,2]
[336055908,1724682649834,-500.0,0.0001179,2]
[336055909,1724682649844,-500.0,0.0001179,2]
[336055910,1724682649854,-887.95,0.0001179,2]
[336055911,1724682649864,-664.03,0.0001179,2]
[336055912,1724682649874,-500.0,0.0001179,2]
[336055913,1724682649884,-500.0,0.0001179,2]
[336055914,1724682649894,-500.0,0.0001179,2]
[336055915,1724682649904,-500.0,0.0001179,2]
[336055916,1724682649914,-500.0,0.0001179,2]
[336055917,1724682649924,-500.0,0.0001179,2]
[336055918,1724682649933,-612.73,0.0001179,2]
[336055919,1724682649943,-548.79,0.0001179,2]
[336055920,1724682649953,-758.97,0.0001179,2]
[336055921,1724682649963,-500.0,0.0001179,2]
[336055922,1724682649973,-500.0,0.0001179,2]
[336055923,1724682649982,-500.0,0.0001179,2]
[336055924,1724682649992,-500.0,0.0001179,2]
[336055925,1724682650001,-269.97377217,0.0001179,2]
[336055926,1724682650011,-500.0,0.0001179,2]
[336055927,1724682650021,-500.0,0.0001179,2]
[336055928,1724682650031,-500.0,0.0001179,2]
[336055929,1724682650040,-500.0,0.0001179,2]
[336055930,1724682650050,-500.0,0.0001179,2]
[336055931,1724682650060,-500.0,0.0001179,2]
[336055932,1724682650070,-289.00183085,0.0001179,2]
[336055933,1724682650080,-548.65,0.0001179,2]
[336055934,1724682650090,-500.0,0.0001179,2]
[336055935,1724682650100,-741.09,0.0001179,2]
[336055936,1724682650110,-500.0,0.0001179,2]
[336055937,1724682650120,-500.0,0.0001179,2]
[336055938,1724682650130,-547.25,0.0001179,2]
[336055939,1724682650140,-500.0,0.0001179,2]
[336055940,1724682650150,-500.0,0.0001179,2]
[336055941,1724682650160,-500.0,0.0001179,2]
[336055942,1724682650170,-500.0,0.0001179,2]
[336055943,1724682650180,-256.18099808,0.0001179,2]
[336055944,1724682650190,-595.47,0.0001179,2]
[336055945,1724682650200,-500.0,0.0001179,2]
[336055946,1724682650210,-500.0,0.0001179,2]
[336055947,1724682650220,-603.23430075,0.0001179,2]
[336055948,1724682650231,-542.24,0.0001179,2]
[336055949,1724682650241,-1823.92,0.0001179,2]
[336055950,1724682650251,-678.36,0.00011791,2]
[336055951,1724682650261,-588.47,0.00011791,2]
[336055952,1724682650271,-550.13,0.00011791,2]
[336055953,1724682650281,-500.0,0.00011791,2]
[336055954,1724682650291,-500.0,0.00011791,2]
[336055955,1724682650301,-644.2,0.00011791,2]
[336055956,1724682650311,-500.0,0.00011791,2]
[336055957,1724682650322,-825.34,0.00011791,2]
[336055958,1724682650333,-902.01,0.00011791,2]
[336055959,1724682650343,-705.05,0.00011791,2]
[336055960,1724682650354,-500.0,0.00011791,2]
[336055961,1724682650365,-792.92,0.00011791,2]
[336055962,1724682650536,-500.0,0.00011791,2]
[336055963,1724682650547,-500.0,0.00011791,2]
[336055964,1724682650556,-773.97,0.00011791,2]
[336055965,1724682650565,-500.0,0.00011791,2]
[336055966,1724682650575,-500.0,0.00011791,2]
[336055967,1724682650586,-500.0,0.00011791,2]
[336055968,1724682650595,-579.01,0.00011791,2]
[336055969,1724682650604,-633.63,0.00011791,2]
[336055970,1724682650614,-724.0,0.00011791,2]
[336055971,1724682650623,-500.0,0.00011791,2]
[336055972,1724682650632,-1230.77,0.00011791,2]
[336055973,1724682650642,-500.0,0.00011791,2]
[336055974,1724682650651,-500.0,0.00011791,2]
[336055975,1724682650661,-505.86,0.00011791,2]
[336055976,1724682650671,-500.0,0.00011791,2]
[336055977,1724682650682,-669.71,0.00011791,2]
[336055978,1724682650692,-500.0,0.00011791,2]
[336055979,1724682650702,-1106.83,0.00011791,2]
[336055980,1724682650712,-500.0,0.00011791,2]
[336055981,1724682650722,-500.0,0.00011791,2]
[336055982,1724682650732,-500.0,0.00011791,2]
[336055983,1724682650742,-500.0,0.00011791,2]
[336055984,1724682650751,-1085.1,0.00011791,2]
[336055985,1724682650760,-500.0,0.00011791,2]
[336055986,1724682650771,-500.0,0.00011791,2]
[336055987,1724682650785,-610.13,0.00011791,2]
[336055988,1724682650794,-500.0,0.00011791,2]
[336055989,1724682650803,-1181.46,0.00011791,2]
[336055990,1724682650813,-938.91,0.00011791,2]
[336055991,1724682650822,-570.89,0.00011791,2]
[336055992,1724682650835,-568.84,0.00011791,2]
[336055993,1724682650845,-500.0,0.00011791,2]
[336055994,1724682650856,-1039.55,0.00011791,2]
[336055995,1724682650866,-500.0,0.00011791,2]
[336055996,1724682650876,-554.69,0.00011791,2]
[336055997,1724682650886,-587.78,0.00011791,2]
[336055998,1724682650896,-500.0,0.00011791,2]
[336055999,1724682650905,-500.0,0.00011791,2]
[336056000,1724682650915,-1016.05,0.00011791,2]
[336056001,1724682650924,-548.65,0.00011791,2]
[336056002,1724682650934,-548.65,0.00011791,2]
[336056003,1724682650944,-548.65,0.00011791,2]
[336056004,1724682650954,-500.0,0.00011791,2]
[336056005,1724682650963,-920.7,0.00011791,2]
[336056006,1724682650974,-500.0,0.00011791,2]
[336056007,1724682650984,-801.09,0.00011791,2]
[336056008,1724682650994,-445.65674843,0.00011791,2]
[336056009,1724682651004,-1221.79,0.00011791,2]
[336056010,1724682651014,-1823.92,0.00011791,2]
[336056011,1724682651023,-1823.92,0.00011791,2]
[336056012,1724682651033,-1823.92,0.00011791,2]
[336056013,1724682651043,-500.0,0.00011792,2]
[336056014,1724682651052,-500.0,0.00011792,2]
[336056015,1724682651062,-586.39071703,0.00011792,2]
[336056016,1724682651071,-532.15248975,0.00011792,2]
[336056017,1724682651083,-500.0,0.00011792,2]
[336056018,1724682651093,-500.0,0.00011792,2]
[336056019,1724682651102,-500.0,0.00011792,2]
[336056020,1724682651112,-500.0,0.00011792,2]
[336056021,1724682651121,-500.0,0.00011792,2]
[336056022,1724682651130,-500.0,0.00011792,2]
[336056023,1724682651140,-832.71,0.00011792,2]
[336056024,1724682651150,-500.0,0.00011792,2]
[336056025,1724682651159,-521.57,0.00011792,2]
[336056026,1724682651169,-500.0,0.00011792,2]
[336056027,1724682651179,-500.0,0.00011792,2]
[336056028,1724682651189,-500.0,0.00011792,2]
[336056029,1724682651198,-500.0,0.00011792,2]
[336056030,1724682651208,-665.17,0.00011792,2]
[336056031,1724682651218,-500.0,0.00011792,2]
[336056032,1724682651229,-500.0,0.00011792,2]
[336056033,1724682651241,-500.0,0.00011792,2]
[336056034,1724682651252,-678.27,0.00011792,2]
[336056035,1724682651262,-500.0,0.00011792,2]
[336056036,1724682651272,-212.56,0.00011792,2]
[336056037,1724682651282,-829.02,0.00011792,2]
[336056038,1724682651292,-491.83630197,0.00011792,2]
[336056039,1724682651302,-500.0,0.00011792,2]
[336056040,1724682651311,-500.0,0.00011792,2]
[336056041,1724682651321,-500.0,0.00011792,2]
[336056042,1724682651334,-500.0,0.00011792,2]
[336056043,1724682651344,-500.0,0.00011792,2]
[336056044,1724682651354,-500.0,0.00011792,2]
[336056045,1724682651363,-576.36,0.00011792,2]
[336056046,1724682651373,-500.0,0.00011792,2]
[336056047,1724682651383,-614.28,0.00011792,2]
[336056048,1724682651393,-500.0,0.00011792,2]
[336056049,1724682651402,-500.0,0.00011792,2]
[336056050,1724682651412,-500.0,0.00011792,2]
[336056051,1724682651422,-500.0,0.00011792,2]
[336056052,1724682651432,-500.0,0.00011792,2]
[336056053,1724682651442,-500.0,0.00011792,2]
[336056054,1724682651452,-500.0,0.00011792,2]
[336056055,1724682651462,-500.0,0.00011792,2]
[336056056,1724682651471,-881.93,0.00011792,2]
[336056057,1724682651481,-500.0,0.00011792,2]
[336056058,1724682651490,-500.0,0.00011792,2]
[336056059,1724682651500,-500.0,0.00011792,2]
[336056060,1724682651510,-500.0,0.00011792,2]
[336056061,1724682651520,-500.0,0.00011792,2]
[336056062,1724682651529,-500.0,0.00011792,2]
[336056063,1724682651538,-500.0,0.00011792,2]
[336056064,1724682651548,-500.0,0.00011792,2]
[336056065,1724682651557,-500.0,0.00011792,2]
[336056066,1724682651566,-500.0,0.00011792,2]
[336056067,1724682651576,-402.25626289,0.00011792,2]
[336056068,1724682651587,-1460.17,0.00011792,2]
[336056069,1724682651596,-500.0,0.00011792,2]
[336056070,1724682651605,-1035.4,0.00011792,2]
[336056071,1724682651614,-505.69,0.00011792,2]
[336056072,1724682651623,-828.67,0.00011792,2]
[336056073,1724682651633,-660.32,0.00011792,2]
[336056074,1724682651643,-685.49,0.00011792,2]
[336056075,1724682651652,-500.0,0.00011792,2]
[336056076,1724682651662,-500.0,0.00011792,2]
[336056077,1724682651672,-993.74,0.00011792,2]
[336056078,1724682651681,-1022.13,0.00011792,2]
[336056079,1724682651691,-621.62,0.00011792,2]